[Event "White Rook U14 Final 2019"]
[Site "Sochi"]
[Date "2019.06.06"]
[Round "2.29"]
[White "Lotnik, Vladislav"]
[Black "Naumov, Igor"]
[Result "1-0"]
[ECO "A17"]
[WhiteElo "1490"]
[BlackElo "1800"]
[Annotator "NA RC"]
[PlyCount "135"]
[EventDate "2019.06.02"]
[EventCountry "RUS"]
[SourceTitle "playchess.com"]
[Source "ChessBase"]
[SourceQuality "1"]
[TimeControl "5400+30"]

1. c4 {[%emt 0:00:00]} Nf6 {[%emt 0:00:02]} 2. Nc3 {[%emt 0:00:06]} e6 {[%emt 0:00:08]} 3. g3 {[%emt 0:00:09]} d5 {[%emt 0:00:18]} 4. cxd5 {[%emt 0:00:51]} exd5 {[%emt 0:00:00]} 5. d4 {[%emt 0:00:19]} Be7 {[%emt 0:00:07]} 6. Bg2 {[%emt 0:00:08]} O-O {[%emt 0:00:09]} 7. Bg5 {[%emt 0:00:26]} c6 {[%emt 0:00:11]} 8. e3 {[%emt 0:00:23]} h6 {[%emt 0:00:11]} 9. Bxf6 {[%emt 0:00:06]} Bxf6 {[%emt 0:00:00]} 10. Nge2 {[%emt 0:00:16]} Bf5 {[%emt 0:00:13]} 11. O-O {[%emt 0:00:19]} Re8 {[%emt 0:00:09]} 12. Rc1 {[%emt 0:00:24]} Nd7 {[%emt 0:00:14]} 13. Nf4 {[%emt 0:00:18]} Nb6 {[%emt 0:02:56]} 14. Nd3 {[%emt 0:01:19]} Nc4 {[%emt 0:01:45]} 15. b3 {[%emt 0:00:58]} Bxd3 {[%emt 0:01:04]} 16. Qxd3 {[%emt 0:00:12]} Nd6 {[%emt 0:00:00]} 17. Na4 {[%emt 0:01:16]} Ne4 {[%emt 0:00:45]} 18. Bxe4 {[%emt 0:02:55]} Rxe4 {[%emt 0:00:10]} 19. Nc5 {[%emt 0:00:29]} Re7 {[%emt 0:00:00]} 20. Qd1 {[%emt 0:00:51]} Qd6 {[%emt 0:00:39]} 21. Qg4 {[%emt 0:01:02]} g6 {[%emt 0:02:54]} 22. Rfd1 {[%emt 0:01:10]} h5 {[%emt 0:00:08]} 23. Qf3 {[%emt 0:00:13]} h4 {[%emt 0:02:42]} 24. e4 {[%emt 0:10:11]} Bg7 {[%emt 0:01:46]} 25. e5 {[%emt 0:01:51]} Qc7 {[%emt 0:00:30]} 26. gxh4 {[%emt 0:00:13]} Rf8 {[%emt 0:00:54]} 27. Qg4 {[%emt 0:02:26]} f6 {[%emt 0:03:57]} 28. f4 {[%emt 0:02:45]} fxe5 {[%emt 0:02:47]} 29. fxe5 {[%emt 0:00:14]} Qc8 {[%emt 0:07:06]} 30. Qxc8 {[%emt 0:01:09]} Rxc8 {[%emt 0:00:11]} 31. Rf1 {[%emt 0:00:45]} b6 {[%emt 0:00:35]} 32. Nd3 {[%emt 0:00:05]} Bh6 {[%emt 0:00:25]} 33. Rce1 {[%emt 0:01:38]} Bd2 {[%emt 0:02:16]} 34. Re2 {[%emt 0:00:52]} Bc3 {[%emt 0:00:14]} 35. Rf4 {[%emt 0:00:26]} c5 {[%emt 0:00:50]} 36. dxc5 {[%emt 0:01:13]} bxc5 {[%emt 0:00:37]} 37. Rf6 {[%emt 0:08:20]} Kg7 {[%emt 0:02:30]} 38. Rg2 {[%emt 0:01:19]} Bxe5 {[%emt 0:01:18]} 39. Rgxg6+ {[%emt 0:00:00]} Kh7 {[%emt 0:00:11]} 40. Rh6+ {[%emt 0:00:05]} Kg7 {[%emt 0:00:18]} 41. Rhg6+ {[%emt 0:00:05]} Kh7 {[%emt 0:00:08]} 42. Nxe5 {[%emt 0:00:28]} Rxe5 {[%emt 0:00:11]} 43. Rh6+ {[%emt 0:00:02]} Kg7 {[%emt 0:00:03]} 44. Rhg6+ {[%emt 0:00:03]} Kh7 {[%emt 0:00:05]} 45. Rg5 {[%emt 0:01:02]} Rce8 {[%emt 0:01:15]} 46. Rf7+ {[%emt 0:00:45]} Kh6 {[%emt 0:00:07]} 47. Rf6+ {[%emt 0:00:06]} Kh7 {[%emt 0:00:03]} 48. Rf7+ {[%emt 0:00:05]} Kh6 {[%emt 0:00:06]} 49. Rxe5 {[%emt 0:00:13]} Rxe5 {[%emt 0:00:03]} 50. Rxa7 {[%emt 0:00:08]} Kh5 {[%emt 0:00:06]} 51. Rg7 {[%emt 0:00:38]} Kxh4 {[%emt 0:00:23]} 52. Kf2 {[%emt 0:00:22]} d4 {[%emt 0:00:36]} 53. Rg3 {[%emt 0:00:21]} Re7 {[%emt 0:00:20]} 54. a4 {[%emt 0:00:25]} Ra7 {[%emt 0:00:27]} 55. Ke2 {[%emt 0:00:16]} Rb7 {[%emt 0:00:33]} 56. Kd2 {[%emt 0:00:18]} Rb4 {[%emt 0:00:41]} 57. Kc2 {[%emt 0:00:57]} Rb7 {[%emt 0:01:26]} 58. Rg6 {[%emt 0:00:58]} d3+ {[%emt 0:01:12]} 59. Kc3 {[%emt 0:00:00]} d2 {[%emt 0:00:23]} 60. Rg1 {[%emt 0:00:08]} Kh3 {[%emt 0:00:40]} 61. Rd1 {[%emt 0:01:30]} Kxh2 {[%emt 0:00:05]} 62. Rxd2+ {[%emt 0:00:05]} Kg3 {[%emt 0:00:05]} 63. Rd5 {[%emt 0:00:03]} Kf4 {[%emt 0:00:05]} 64. Rxc5 {[%emt 0:00:07]} Ke4 {[%emt 0:00:05]} 65. Kc4 {[%emt 0:00:10]} Rd7 {[%emt 0:00:18]} 66. Rc6 {[%emt 0:00:24]} Rd1 {[%emt 0:00:18]} 67. Re6+ {[%emt 0:00:11]} Kf5 {[%emt 0:00:02]} 68. Re3 {[%emt 0:00:10]} 1-0

[Event "White Rook U14 Final 2019"]
[Site "Sochi"]
[Date "2019.06.06"]
[Round "2.30"]
[White "Nasedkin, Arseny"]
[Black "Kostornichenko, Yana"]
[Result "1/2-1/2"]
[ECO "B42"]
[WhiteElo "1559"]
[BlackElo "1706"]
[Annotator "NA RC"]
[PlyCount "86"]
[EventDate "2019.06.02"]
[EventCountry "RUS"]
[SourceTitle "playchess.com"]
[Source "ChessBase"]
[SourceQuality "1"]
[TimeControl "5400+30"]

1. e4 {[%emt 0:00:00]} c5 {[%emt 0:00:05]} 2. Nf3 {[%emt 0:00:03]} e6 {[%emt 0:00:08]} 3. d4 {[%emt 0:00:02]} cxd4 {[%emt 0:00:06]} 4. Nxd4 {[%emt 0:00:04]} a6 {[%emt 0:00:06]} 5. Bd3 {[%emt 0:00:11]} g6 {[%emt 0:00:06]} 6. O-O {[%emt 0:00:09]} Bg7 {[%emt 0:00:05]} 7. c3 {[%emt 0:00:41]} Ne7 {[%emt 0:01:16]} 8. Be3 {[%emt 0:02:25]} O-O {[%emt 0:05:42]} 9. Nd2 {[%emt 0:01:02]} d5 {[%emt 0:04:35]} 10. exd5 {[%emt 0:07:26]} Nxd5 {[%emt 0:00:22]} 11. Qe2 {[%emt 0:03:34]} Nd7 {[%emt 0:03:36]} 12. Be4 {[%emt 0:04:57]} N7f6 {[%emt 0:04:13]} 13. Rfd1 {[%emt 0:03:50]} Bd7 {[%emt 0:07:51]} 14. Bf3 {[%emt 0:03:42]} Qc7 {[%emt 0:03:06]} 15. c4 {[%emt 0:02:46]} Nxe3 {[%emt 0:01:48]} 16. Qxe3 {[%emt 0:00:41]} Rfe8 {[%emt 0:04:38]} 17. Rac1 {[%emt 0:03:14]} e5 {[%emt 0:02:03]} 18. N4b3 {[%emt 0:00:48]} e4 {[%emt 0:02:35]} 19. Be2 {[%emt 0:03:32]} Ng4 {[%emt 0:01:19]} 20. Bxg4 {[%emt 0:04:03]} Bxg4 {[%emt 0:00:05]} 21. Re1 {[%emt 0:00:57]} Bxb2 {[%emt 0:03:06]} 22. Rc2 {[%emt 0:01:36]} Bg7 {[%emt 0:01:35]} 23. h3 {[%emt 0:01:48]} Bd7 {[%emt 0:01:04]} 24. Nc5 {[%emt 0:13:11]} f5 {[%emt 0:01:32]} 25. Rb1 {[%emt 0:04:52]} Bc6 {[%emt 0:02:33]} 26. Qe2 {[%emt 0:11:04]} Rad8 {[%emt 0:00:39]} 27. Ndb3 {[%emt 0:01:35]} f4 {[%emt 0:03:45]} 28. Qg4 {[%emt 0:02:01]} Bd7 {[%emt 0:05:42]} 29. Nxd7 {[%emt 0:01:40]} Rxd7 {[%emt 0:03:43]} 30. Nc5 {[%emt 0:03:47]} Rde7 {[%emt 0:00:22]} 31. Nb3 {[%emt 0:06:38]} e3 {[%emt 0:00:44]} 32. fxe3 {[%emt 0:00:36]} Rxe3 {[%emt 0:00:33]} 33. Rd1 {[%emt 0:00:55]} Qe5 {[%emt 0:03:56]} 34. Rf2 {[%emt 0:01:16]} Re1+ {[%emt 0:01:12]} 35. Rf1 {[%emt 0:00:35]} Qe3+ {[%emt 0:01:59]} 36. Kh1 {[%emt 0:00:17]} Rxf1+ {[%emt 0:05:35]} 37. Rxf1 {[%emt 0:00:07]} Rf8 {[%emt 0:04:09]} 38. Qd7 {[%emt 0:01:39]} Qe2 {[%emt 0:00:49]} 39. Kg1 {[%emt 0:01:19]} Rf7 {[%emt 0:02:14]} 40. Qd8+ {[%emt 0:00:35]} Bf8 {[%emt 0:00:08]} 41. Qd5 {[%emt 0:00:53]} Qe3+ {[%emt 0:01:27]} 42. Kh1 {[%emt 0:00:37]} Kg7 {[%emt 0:02:06]} 43. Nd4 {[%emt 0:01:05]} b6 {[%emt 0:00:47]} 1/2-1/2

[Event "White Rook U14 Final 2019"]
[Site "Sochi"]
[Date "2019.06.06"]
[Round "2.31"]
[White "Abubekerov, Iliya"]
[Black "Noskov, Alexander"]
[Result "1-0"]
[ECO "D94"]
[WhiteElo "1199"]
[BlackElo "1782"]
[Annotator "NA RC"]
[PlyCount "49"]
[EventDate "2019.06.02"]
[EventCountry "RUS"]
[SourceTitle "playchess.com"]
[Source "ChessBase"]
[SourceQuality "1"]
[TimeControl "5400+30"]

1. d4 {[%emt 0:00:00]} d5 {[%emt 0:00:08]} 2. c4 {[%emt 0:00:02]} c6 {[%emt 0:00:06]} 3. Nc3 {[%emt 0:00:02]} Nf6 {[%emt 0:00:06]} 4. Nf3 {[%emt 0:00:07]} g6 {[%emt 0:00:05]} 5. e3 {[%emt 0:00:32]} Bg7 {[%emt 0:00:34]} 6. Be2 {[%emt 0:00:10]} O-O {[%emt 0:00:09]} 7. O-O {[%emt 0:00:03]} a6 {[%emt 0:00:09]} 8. cxd5 {[%emt 0:01:01]} cxd5 {[%emt 0:00:11]} 9. Qb3 {[%emt 0:00:22]} Nc6 {[%emt 0:00:49]} 10. Bd2 {[%emt 0:01:14]} Rb8 {[%emt 0:01:07]} 11. Na4 {[%emt 0:00:34]} b5 {[%emt 0:01:57]} 12. Nc5 {[%emt 0:00:11]} Bb7 {[%emt 0:01:46]} 13. Rfc1 {[%emt 0:00:16]} Qd6 {[%emt 0:01:09]} 14. a4 {[%emt 0:01:25]} b4 {[%emt 0:06:28]} 15. a5 {[%emt 0:05:28]} Rfd8 {[%emt 0:16:37]} 16. Qc2 {[%emt 0:03:00]} Na7 {[%emt 0:15:55]} 17. Bxb4 {[%emt 0:00:17]} Qc6 {[%emt 0:15:25]} 18. Ne5 {[%emt 0:00:19]} Qc8 {[%emt 0:00:53]} 19. Ncd3 {[%emt 0:01:03]} e6 {[%emt 0:03:43]} 20. Qxc8 {[%emt 0:01:46]} Rdxc8 {[%emt 0:01:01]} 21. Bd6 {[%emt 0:00:42]} Ra8 {[%emt 0:00:24]} 22. Nc5 {[%emt 0:01:32]} Bc6 {[%emt 0:00:05]} 23. Bxa6 {[%emt 0:03:59]} Re8 {[%emt 0:00:17]} 24. Nxc6 {[%emt 0:01:58]} Nxc6 {[%emt 0:00:17]} 25. Bb7 {[%emt 0:00:54]} 1-0

[Event "White Rook U14 Final 2019"]
[Site "Sochi"]
[Date "2019.06.06"]
[Round "2.32"]
[White "Suslenkova, Elvira"]
[Black "Kulish, Glafira"]
[Result "1-0"]
[ECO "E11"]
[WhiteElo "1359"]
[BlackElo "1379"]
[Annotator "NA RC"]
[PlyCount "93"]
[EventDate "2019.06.02"]
[EventCountry "RUS"]
[SourceTitle "playchess.com"]
[Source "ChessBase"]
[SourceQuality "1"]
[TimeControl "5400+30"]

1. Nf3 {[%emt 0:00:00]} e6 {[%emt 0:00:10]} 2. g3 {[%emt 0:00:08]} Nf6 {[%emt 0:00:06]} 3. Bg2 {[%emt 0:00:04]} Bb4 {[%emt 0:00:51]} 4. O-O {[%emt 0:00:14]} O-O {[%emt 0:00:09]} 5. a3 {[%emt 0:00:16]} Be7 {[%emt 0:01:49]} 6. d4 {[%emt 0:00:33]} d5 {[%emt 0:03:19]} 7. Nbd2 {[%emt 0:00:37]} c5 {[%emt 0:00:47]} 8. c4 {[%emt 0:01:08]} Nc6 {[%emt 0:00:39]} 9. dxc5 {[%emt 0:00:13]} Bxc5 {[%emt 0:00:11]} 10. cxd5 {[%emt 0:00:16]} Nxd5 {[%emt 0:01:59]} 11. Nc4 {[%emt 0:00:39]} Qc7 {[%emt 0:02:07]} 12. b4 {[%emt 0:01:16]} Be7 {[%emt 0:00:42]} 13. Qb3 {[%emt 0:00:22]} Bf6 {[%emt 0:01:33]} 14. Bb2 {[%emt 0:02:41]} Bxb2 {[%emt 0:00:34]} 15. Nxb2 {[%emt 0:00:09]} b5 {[%emt 0:02:12]} 16. Rac1 {[%emt 0:00:39]} Qb6 {[%emt 0:00:32]} 17. Nd3 {[%emt 0:01:22]} Nd4 {[%emt 0:05:00]} 18. Nxd4 {[%emt 0:00:44]} Qxd4 {[%emt 0:00:10]} 19. e3 {[%emt 0:00:51]} Qf6 {[%emt 0:01:56]} 20. Nf4 {[%emt 0:01:25]} Nxf4 {[%emt 0:01:24]} 21. Bxa8 {[%emt 0:02:23]} Ne2+ {[%emt 0:00:08]} 22. Kg2 {[%emt 0:00:09]} Nxc1 {[%emt 0:00:23]} 23. Rxc1 {[%emt 0:00:06]} e5 {[%emt 0:01:52]} 24. Bd5 {[%emt 0:01:45]} Rd8 {[%emt 0:05:08]} 25. Rc7 {[%emt 0:01:33]} Be6 {[%emt 0:00:44]} 26. Bxe6 {[%emt 0:00:11]} fxe6 {[%emt 0:00:03]} 27. Qc2 {[%emt 0:02:01]} e4 {[%emt 0:14:40]} 28. Rc8 {[%emt 0:05:17]} Qf3+ {[%emt 0:02:43]} 29. Kg1 {[%emt 0:01:16]} Qf6 {[%emt 0:04:17]} 30. Qc7 {[%emt 0:02:05]} Rxc8 {[%emt 0:09:07]} 31. Qxc8+ {[%emt 0:02:32]} Kf7 {[%emt 0:00:08]} 32. Qb7+ {[%emt 0:00:23]} Kg6 {[%emt 0:02:45]} 33. Qxe4+ {[%emt 0:00:14]} Qf5 {[%emt 0:00:07]} 34. Qc6 {[%emt 0:03:18]} Qe5 {[%emt 0:02:38]} 35. Qc2+ {[%emt 0:03:28]} Kh6 {[%emt 0:01:22]} 36. Qc1 {[%emt 0:01:05]} Kg6 {[%emt 0:00:07]} 37. h4 {[%emt 0:01:32]} h5 {[%emt 0:00:44]} 38. Qb1+ {[%emt 0:00:51]} Kf6 {[%emt 0:01:32]} 39. Qd3 {[%emt 0:00:55]} Qd5 {[%emt 0:01:18]} 40. Qxd5 {[%emt 0:01:46]} exd5 {[%emt 0:00:07]} 41. Kf1 {[%emt 0:00:03]} Ke5 {[%emt 0:00:13]} 42. Ke2 {[%emt 0:00:11]} g6 {[%emt 0:01:41]} 43. Kd3 {[%emt 0:03:12]} Ke6 {[%emt 0:01:43]} 44. Kd4 {[%emt 0:00:37]} Kd6 {[%emt 0:00:10]} 45. f3 {[%emt 0:00:19]} a6 {[%emt 0:00:29]} 46. g4 {[%emt 0:00:29]} g5 {[%emt 0:01:17]} 47. gxh5 {[%emt 0:00:43]} 1-0

[Event "White Rook U14 Final 2019"]
[Site "Sochi"]
[Date "2019.06.06"]
[Round "2.33"]
[White "Kulnev, Aleksandr"]
[Black "Balashov, Arseny"]
[Result "0-1"]
[ECO "B27"]
[WhiteElo "1377"]
[BlackElo "1990"]
[Annotator "NA RC"]
[PlyCount "94"]
[EventDate "2019.06.02"]
[EventCountry "RUS"]
[SourceTitle "playchess.com"]
[Source "ChessBase"]
[SourceQuality "1"]
[TimeControl "5400+30"]

1. e4 {[%emt 0:00:00]} c5 {[%emt 0:00:05]} 2. c3 {[%emt 0:00:11]} g6 {[%emt 0:00:08]} 3. d4 {[%emt 0:00:10]} cxd4 {[%emt 0:00:03]} 4. cxd4 {[%emt 0:00:06]} d5 {[%emt 0:00:04]} 5. e5 {[%emt 0:00:14]} Bg7 {[%emt 0:00:12]} 6. Nf3 {[%emt 0:00:19]} Nh6 {[%emt 0:00:17]} 7. Be3 {[%emt 0:00:58]} a6 {[%emt 0:01:22]} 8. Be2 {[%emt 0:00:13]} Nc6 {[%emt 0:00:03]} 9. Nc3 {[%emt 0:00:57]} O-O {[%emt 0:05:27]} 10. O-O {[%emt 0:00:14]} Nf5 {[%emt 0:05:33]} 11. Qb3 {[%emt 0:08:03]} b5 {[%emt 0:06:19]} 12. Qxd5 {[%emt 0:09:12]} Qxd5 {[%emt 0:02:25]} 13. Nxd5 {[%emt 0:00:11]} Rd8 {[%emt 0:00:00]} 14. Nb6 {[%emt 0:01:12]} Rb8 {[%emt 0:00:00]} 15. Nxc8 {[%emt 0:03:27]} Rbxc8 {[%emt 0:00:00]} 16. Rfd1 {[%emt 0:00:38]} Nb4 {[%emt 0:00:28]} 17. Bd3 {[%emt 0:02:45]} Nxe3 {[%emt 0:33:37]} 18. fxe3 {[%emt 0:00:24]} Nc2 {[%emt 0:00:41]} 19. Bxc2 {[%emt 0:00:28]} Rxc2 {[%emt 0:00:00]} 20. Rd2 {[%emt 0:00:47]} Rxd2 {[%emt 0:00:06]} 21. Nxd2 {[%emt 0:00:07]} Rc8 {[%emt 0:02:58]} 22. Nb3 {[%emt 0:38:12]} Bh6 {[%emt 0:01:18]} 23. e4 {[%emt 0:07:47]} Rc2 {[%emt 0:01:42]} 24. d5 {[%emt 0:01:53]} Bf4 {[%emt 0:01:02]} 25. e6 {[%emt 0:21:16]} fxe6 {[%emt 0:00:09]} 26. dxe6 {[%emt 0:00:06]} Rxb2 {[%emt 0:00:19]} 27. Na5 {[%emt 0:00:37]} Rc2 {[%emt 0:02:21]} 28. Nb7 {[%emt 0:00:47]} Be5 {[%emt 0:00:07]} 29. Rd1 {[%emt 0:00:50]} Rxa2 {[%emt 0:00:41]} 30. Rd7 {[%emt 0:00:11]} Kf8 {[%emt 0:00:18]} 31. h3 {[%emt 0:00:21]} b4 {[%emt 0:00:01]} 32. Rd8+ {[%emt 0:01:23]} Kg7 {[%emt 0:00:01]} 33. Rd7 {[%emt 0:01:09]} Kf6 {[%emt 0:00:06]} 34. Rd1 {[%emt 0:00:29]} b3 {[%emt 0:00:05]} 35. Rf1+ {[%emt 0:00:08]} Kg5 {[%emt 0:00:19]} 36. Rb1 {[%emt 0:01:10]} b2 {[%emt 0:00:02]} 37. Kf2 {[%emt 0:00:36]} Ra1 {[%emt 0:00:03]} 38. Nd8 {[%emt 0:00:34]} Rxb1 {[%emt 0:00:06]} 39. Nc6 {[%emt 0:00:06]} Bd6 {[%emt 0:00:05]} 40. e5 {[%emt 0:00:06]} Bc5+ {[%emt 0:00:01]} 41. Ke2 {[%emt 0:00:11]} Rg1 {[%emt 0:00:03]} 42. Kd3 {[%emt 0:00:21]} b1=Q+ {[%emt 0:00:12]} 43. Kc4 {[%emt 0:00:13]} Rc1+ {[%emt 0:00:02]} 44. Kd5 {[%emt 0:00:19]} Qd3+ {[%emt 0:00:02]} 45. Nd4 {[%emt 0:00:07]} Bxd4 {[%emt 0:00:08]} 46. h4+ {[%emt 0:00:19]} Kg4 {[%emt 0:00:00]} 47. h5 {[%emt 0:00:19]} Bg1# {[%emt 0:00:02]} 0-1

[Event "White Rook U14 Final 2019"]
[Site "Sochi"]
[Date "2019.06.06"]
[Round "2.34"]
[White "Mikheev, Arsenii E."]
[Black "Kudryavtsev, Egor"]
[Result "1-0"]
[ECO "E13"]
[WhiteElo "1500"]
[BlackElo "1283"]
[Annotator "NA RC"]
[PlyCount "99"]
[EventDate "2019.06.02"]
[EventCountry "RUS"]
[SourceTitle "playchess.com"]
[Source "ChessBase"]
[SourceQuality "1"]
[TimeControl "5400+30"]

1. c4 {[%emt 0:00:00]} e6 {[%emt 0:00:48]} 2. Nc3 {[%emt 0:00:23]} Nf6 {[%emt 0:01:18]} 3. d4 {[%emt 0:00:11]} Bb4 {[%emt 0:00:05]} 4. Nf3 {[%emt 0:00:34]} Bxc3+ {[%emt 0:02:08]} 5. bxc3 {[%emt 0:00:47]} b6 {[%emt 0:00:35]} 6. Bg5 {[%emt 0:01:21]} Bb7 {[%emt 0:01:10]} 7. e3 {[%emt 0:00:19]} h6 {[%emt 0:00:22]} 8. Bh4 {[%emt 0:01:24]} d6 {[%emt 0:03:52]} 9. Be2 {[%emt 0:00:34]} g5 {[%emt 0:04:10]} 10. Bg3 {[%emt 0:00:43]} Ne4 {[%emt 0:09:38]} 11. Bd3 {[%emt 0:04:39]} Nd7 {[%emt 0:06:36]} 12. Qc2 {[%emt 0:01:47]} f5 {[%emt 0:05:56]} 13. Bxe4 {[%emt 0:00:28]} Bxe4 {[%emt 0:00:27]} 14. Qe2 {[%emt 0:00:11]} h5 {[%emt 0:03:29]} 15. h4 {[%emt 0:01:37]} Bxf3 {[%emt 0:06:00]} 16. Qxf3 {[%emt 0:00:15]} g4 {[%emt 0:00:08]} 17. Qc6 {[%emt 0:01:04]} Kf7 {[%emt 0:03:27]} 18. c5 {[%emt 0:03:33]} bxc5 {[%emt 0:01:23]} 19. dxc5 {[%emt 0:00:31]} Nxc5 {[%emt 0:03:20]} 20. Rd1 {[%emt 0:00:41]} Qd7 {[%emt 0:02:38]} 21. Qxc5 {[%emt 0:00:14]} Rhd8 {[%emt 0:11:08]} 22. Qd4 {[%emt 0:00:25]} Qe7 {[%emt 0:00:52]} 23. Qf4 {[%emt 0:00:12]} Qf6 {[%emt 0:01:22]} 24. Qc4 {[%emt 0:00:08]} Rdc8 {[%emt 0:07:14]} 25. O-O {[%emt 0:00:32]} Ke7 {[%emt 0:04:07]} 26. Rb1 {[%emt 0:01:23]} e5 {[%emt 0:01:58]} 27. Rb7 {[%emt 0:03:04]} Kd8 {[%emt 0:01:38]} 28. Rd1 {[%emt 0:00:43]} a5 {[%emt 0:05:24]} 29. Qc6 {[%emt 0:04:06]} Rab8 {[%emt 0:03:33]} 30. Rxc7 {[%emt 0:01:49]} Rxc7 {[%emt 0:02:08]} 31. Rxd6+ {[%emt 0:00:17]} Qxd6 {[%emt 0:00:05]} 32. Qxd6+ {[%emt 0:00:08]} Kc8 {[%emt 0:00:07]} 33. Bxe5 {[%emt 0:00:08]} Rb1+ {[%emt 0:00:25]} 34. Kh2 {[%emt 0:00:04]} Rd7 {[%emt 0:00:59]} 35. Qf8+ {[%emt 0:00:16]} Kb7 {[%emt 0:03:11]} 36. Qb8+ {[%emt 0:00:13]} Kc6 {[%emt 0:00:45]} 37. Qxb1 {[%emt 0:00:10]} Rd5 {[%emt 0:01:17]} 38. Qxf5 {[%emt 0:00:13]} Rd2 {[%emt 0:01:29]} 39. Qc8+ {[%emt 0:00:19]} Kb5 {[%emt 0:00:12]} 40. Qb7+ {[%emt 0:00:13]} Kc4 {[%emt 0:00:17]} 41. Qb3+ {[%emt 0:00:30]} Kd3 {[%emt 0:00:15]} 42. c4+ {[%emt 0:00:05]} Ke2 {[%emt 0:00:09]} 43. c5 {[%emt 0:00:08]} Kxf2 {[%emt 0:00:15]} 44. Bg3+ {[%emt 0:00:05]} Ke2 {[%emt 0:00:12]} 45. Qc4+ {[%emt 0:00:08]} Kd1 {[%emt 0:00:10]} 46. c6 {[%emt 0:00:07]} a4 {[%emt 0:00:23]} 47. c7 {[%emt 0:00:07]} a3 {[%emt 0:00:03]} 48. c8=Q {[%emt 0:00:07]} Rxa2 {[%emt 0:01:07]} 49. Qc1+ {[%emt 0:00:08]} Ke2 {[%emt 0:00:10]} 50. Q8c4# {[%emt 0:00:05]} 1-0

[Event "White Rook U14 Final 2019"]
[Site "Sochi"]
[Date "2019.06.06"]
[Round "2.36"]
[White "Belova, Tatyana"]
[Black "Malysheva, Valeria"]
[Result "0-1"]
[ECO "A29"]
[WhiteElo "1584"]
[BlackElo "1699"]
[Annotator "NA RC"]
[PlyCount "124"]
[EventDate "2019.06.02"]
[EventCountry "RUS"]
[SourceTitle "playchess.com"]
[Source "ChessBase"]
[SourceQuality "1"]
[TimeControl "5400+30"]

1. c4 {[%emt 0:00:00]} e5 {[%emt 0:00:08]} 2. Nc3 {[%emt 0:00:02]} Nf6 {[%emt 0:00:12]} 3. g3 {[%emt 0:00:06]} d5 {[%emt 0:00:32]} 4. cxd5 {[%emt 0:00:16]} Nxd5 {[%emt 0:00:06]} 5. Bg2 {[%emt 0:00:09]} Be6 {[%emt 0:02:11]} 6. Nf3 {[%emt 0:00:21]} Nc6 {[%emt 0:00:54]} 7. O-O {[%emt 0:00:42]} Be7 {[%emt 0:00:54]} 8. d4 {[%emt 0:01:46]} exd4 {[%emt 0:04:12]} 9. Nxd4 {[%emt 0:00:44]} Nxd4 {[%emt 0:03:54]} 10. Qxd4 {[%emt 0:00:14]} Bf6 {[%emt 0:04:36]} 11. Qa4+ {[%emt 0:02:46]} c6 {[%emt 0:05:46]} 12. Nxd5 {[%emt 0:01:24]} Bxd5 {[%emt 0:00:38]} 13. Rd1 {[%emt 0:01:29]} b5 {[%emt 0:01:40]} 14. Qc2 {[%emt 0:01:54]} Qb6 {[%emt 0:01:53]} 15. Be3 {[%emt 0:03:11]} Qb7 {[%emt 0:01:32]} 16. Bxd5 {[%emt 0:01:53]} cxd5 {[%emt 0:00:11]} 17. Rac1 {[%emt 0:01:09]} O-O {[%emt 0:01:15]} 18. Bd4 {[%emt 0:03:47]} Rac8 {[%emt 0:03:24]} 19. Qd2 {[%emt 0:01:50]} Bxd4 {[%emt 0:03:14]} 20. Qxd4 {[%emt 0:00:09]} Rc4 {[%emt 0:01:36]} 21. Rxc4 {[%emt 0:06:38]} dxc4 {[%emt 0:00:10]} 22. Qd7 {[%emt 0:02:45]} Qa6 {[%emt 0:01:12]} 23. Qe7 {[%emt 0:07:03]} h6 {[%emt 0:02:22]} 24. Ra1 {[%emt 0:05:30]} Qb6 {[%emt 0:01:38]} 25. Rd1 {[%emt 0:04:06]} Qa5 {[%emt 0:03:08]} 26. a3 {[%emt 0:02:22]} Qb6 {[%emt 0:00:25]} 27. Qd6 {[%emt 0:02:02]} Qb7 {[%emt 0:02:00]} 28. Qd7 {[%emt 0:02:47]} Rb8 {[%emt 0:04:16]} 29. Rd6 {[%emt 0:03:48]} Qxd7 {[%emt 0:06:11]} 30. Rxd7 {[%emt 0:00:07]} a6 {[%emt 0:00:48]} 31. Rd6 {[%emt 0:01:59]} a5 {[%emt 0:00:37]} 32. Ra6 {[%emt 0:02:12]} a4 {[%emt 0:00:07]} 33. Rd6 {[%emt 0:00:18]} Rb7 {[%emt 0:00:38]} 34. e3 {[%emt 0:07:37]} b4 {[%emt 0:00:00]} 35. axb4 {[%emt 0:04:40]} Rxb4 {[%emt 0:00:10]} 36. Rd4 {[%emt 0:00:45]} Rxb2 {[%emt 0:02:11]} 37. Rxc4 {[%emt 0:00:25]} a3 {[%emt 0:00:32]} 38. Ra4 {[%emt 0:00:40]} a2 {[%emt 0:00:20]} 39. Kg2 {[%emt 0:00:04]} Kh7 {[%emt 0:00:19]} 40. g4 {[%emt 0:00:27]} Kg6 {[%emt 0:02:39]} 41. h4 {[%emt 0:00:47]} h5 {[%emt 0:02:16]} 42. gxh5+ {[%emt 0:01:39]} Kxh5 {[%emt 0:02:01]} 43. Kg3 {[%emt 0:00:11]} Kg6 {[%emt 0:00:45]} 44. Ra5 {[%emt 0:01:43]} Kf6 {[%emt 0:02:02]} 45. f4 {[%emt 0:01:21]} Ke6 {[%emt 0:01:30]} 46. Kf3 {[%emt 0:00:40]} Kd6 {[%emt 0:00:49]} 47. Ke4 {[%emt 0:02:07]} Rd2 {[%emt 0:02:28]} 48. Kf3 {[%emt 0:00:52]} Kc6 {[%emt 0:00:37]} 49. e4 {[%emt 0:00:34]} Kb6 {[%emt 0:01:20]} 50. Ra8 {[%emt 0:00:22]} Kb5 {[%emt 0:01:05]} 51. e5 {[%emt 0:02:04]} Kb4 {[%emt 0:01:12]} 52. f5 {[%emt 0:01:45]} Rd3+ {[%emt 0:01:03]} 53. Ke4 {[%emt 0:01:33]} Ra3 {[%emt 0:00:56]} 54. Rb8+ {[%emt 0:00:09]} Kc5 {[%emt 0:00:18]} 55. Rc8+ {[%emt 0:00:15]} Kb6 {[%emt 0:03:52]} 56. Rc1 {[%emt 0:00:07]} a1=Q {[%emt 0:00:13]} 57. Rxa1 {[%emt 0:00:06]} Rxa1 {[%emt 0:00:02]} 58. e6 {[%emt 0:00:08]} fxe6 {[%emt 0:00:23]} 59. fxe6 {[%emt 0:00:09]} Kc6 {[%emt 0:00:05]} 60. Kf5 {[%emt 0:00:29]} Kd6 {[%emt 0:02:10]} 61. Kg6 {[%emt 0:00:12]} Kxe6 {[%emt 0:00:23]} 62. Kxg7 {[%emt 0:00:10]} Rh1 {[%emt 0:00:31]} 0-1